lending/lending_fUSD_20240401
["ID","MTS","AMOUNT","RATE_DAILY","PERIOD"]
[321186893,1711954238966,-2143.77423767,0.00059,7]
[321186895,1711954238977,-13588.629744,0.00059,7]
[321186897,1711954238988,-311.184893,0.00059,7]
[321186900,1711954239001,-614.24556904,0.00059,7]
[321186902,1711954239012,-18450.37762474,0.00059,7]
[321186904,1711954239021,-1000.0,0.00059,120]
[321186906,1711954239029,-20000.0,0.00059,120]
[321186908,1711954239038,-150.0,0.00059,13]
[321186910,1711954239048,-9163.12237526,0.000591,14]
[321186912,1711954239064,-836.87762474,0.000591,14]
[321186913,1711954239073,-579.08,0.00059109,120]
[321186914,1711954239082,-395.94452598,0.00059109,120]
[321186915,1711954239093,-211.81920287,0.00059109,120]
[321186916,1711954239104,-94.02448656,0.00059109,120]
[321186921,1711954240226,5000.0,0.00043021,120]
[321186922,1711954240314,-405.97551344,0.00059109,120]
[321186923,1711954240323,-839.33845905,0.00059109,120]
[321186924,1711954240335,-255.02154095,0.00059109,120]
[321186925,1711954240345,-715.21,0.00059109,120]
[321186926,1711954240354,-423.08230195,0.00059109,120]
[321186927,1711954240446,-299.55825315,0.00059109,120]
[321186944,1711954243738,-500.0,0.00054999,120]
[321186945,1711954243749,-448.75446049,0.00055273,120]
[321186946,1711954244455,-51.24553951,0.00055273,120]
[321186947,1711954244465,-500.0,0.00055547,120]
[321186948,1711954244475,-147.36538959,0.00055821,120]
[321186970,1711954247567,-200.05204,0.00054999,120]
[321186971,1711954247577,-500.0,0.00054999,120]
[321186972,1711954247586,-503.68173203,0.00054999,120]
[321186973,1711954247595,-352.63461041,0.00055821,120]
[321186974,1711954247604,-500.0,0.00056095,120]
[321186975,1711954247613,-500.0,0.00056369,120]
[321186976,1711954247624,-500.0,0.00056643,120]
[321186977,1711954247633,-92.92000759,0.00056917,120]
[321186979,1711954268913,5000.0,0.00043021,120]
[321186980,1711954276376,-9012.33531969,0.0004302,2]
[321186981,1711954306884,274.13,0.000428,2]
[321186982,1711954317260,781.88674417,0.0003999,2]
[321186983,1711954320415,1000.0,0.000406,15]
[321186984,1711954320676,1000.0,0.000409,15]
[321186985,1711954321032,1000.0,0.000412,15]
[321186986,1711954321203,1000.0,0.000415,15]
[321186987,1711954321493,1000.0,0.000418,15]
[321186988,1711954322369,1000.0,0.000421,15]
[321186995,1711954348154,-1588.06756676,0.0004302,4]
[321186996,1711954349345,377.18931,0.00042804,2]
[321186997,1711954369461,-1033.7296584,0.0004302,4]
[321187003,1711954425347,1360.44817305,0.00037,4]
[321187005,1711954446406,1031.9455614,0.00037,2]
[321187008,1711954470936,548.13125449,0.00025,2]
[321187011,1711954474864,2202.66370005,0.0003,7]
[321187012,1711954475184,156.32,0.00037808,2]
[321187014,1711954477300,400.84984137,0.00031,2]
[321187015,1711954478588,6589.9999991,0.0003974,2]
[321187018,1711954490415,-8344.7781017,0.0004302,4]
[321187024,1711954542094,-1856.26400892,0.00042919,4]
[321187027,1711954584595,-583.54949054,0.00042919,4]
[321187028,1711954584618,-29813.69611942,0.0004302,4]
[321187029,1711954635425,-150.0,0.00042918,5]
[321187030,1711954635447,-550.0,0.00042918,5]
[321187032,1711954651795,-12781.92639262,0.00042919,4]
[321187033,1711954915149,-583.54949054,0.0004262,4]
[321187035,1711954962477,1000.0,0.00037,2]
[321187036,1711955011105,1000.0,0.00037,2]
[321187037,1711955123333,156.24,0.00037808,2]
[321187038,1711955200134,12793.109999,0.0003974,2]
[321187041,1711955283107,-177.67,0.00041096,2]
[321187042,1711955283127,-156.26944668,0.000419,2]
[321187043,1711955283147,-4889.8,0.00042,2]
[321187044,1711955283167,-156.26944666,0.00042031,2]
[321187045,1711955283187,-156.26944666,0.00042161,2]
[321187046,1711955283207,-201.09327358,0.00042261,2]
[321187047,1711955283228,-169.93,0.00042475,2]
[321187048,1711955283248,-466.83959243,0.00042919,4]
[321187049,1711955283270,-300.0,0.0004292,3]
[321187050,1711955283290,-7432.5456,0.00042921,2]
[321187051,1711955283313,-161.35982493,0.00043055,2]
[321187058,1711955432290,-37263.30625612,0.00043156,15]
[321187059,1711955432300,-6176.17416484,0.00043156,2]
[321187060,1711955432309,-150.99,0.00043334,2]
[321187061,1711955432318,-151.0,0.00048,120]
[321187062,1711955432327,-3677.18844861,0.000485,30]
[321187063,1711955432336,-1052.0,0.000487,117]
[321187064,1711955432345,-214.26950923,0.0004939,2]
[321187065,1711955432354,-1000.0,0.000494,15]
[321187066,1711955432363,-310.72,0.000494,2]
[321187067,1711955432373,-1338.38,0.000494,2]
[321187068,1711955432382,-2155.26583256,0.0004949,10]
[321187069,1711955432391,-499.99,0.0004949,2]
[321187070,1711955432400,-156.24,0.00050205,2]
[321187071,1711955432410,-250.99,0.00050815,2]
[321187072,1711955432419,-3204.3543578,0.00050999,2]
[321187073,1711955432432,-1000.0,0.00051,15]
[321187074,1711955432442,-1000.0,0.000513,15]
[321187075,1711955432451,-1000.0,0.000516,15]
[321187076,1711955432462,-23900.0,0.00052416,2]
[321187077,1711955432471,-250.0,0.0005246,120]
[321187078,1711955432480,-150.0,0.00052637,2]
[321187079,1711955432490,-1000.0,0.000527,15]
[321187080,1711955432500,-250.99,0.00053079,2]
[321187081,1711955432509,-274.63,0.00053291,2]
[321187082,1711955432520,-150.74,0.00053313,120]
[321187083,1711955432530,-179.0,0.00053411,2]
[321187084,1711955432539,-214.26950921,0.00053545,120]
[321187085,1711955432549,-157.5,0.00053563,120]
[321187086,1711955432558,-500.0,0.00053712,2]
[321187087,1711955432568,-600.0,0.00053771,120]
[321187088,1711955432578,-171.24,0.00053967,2]
[321187089,1711955432587,-200.0,0.00054063,30]
[321187090,1711955432596,-250.0,0.00054108,120]
[321187091,1711955432605,-400.0,0.00054138,120]
[321187092,1711955432615,-432.26,0.00054153,120]
[321187093,1711955432624,-466.83959243,0.0005421,4]
[321187094,1711955432634,-500.0,0.00054211,2]
[321187095,1711955432643,-156.32,0.00054338,2]
[321187096,1711955432652,-675.18,0.00054485,120]
[321187097,1711955432661,-1022.03713908,0.00054998,120]
[321187098,1711955432671,-200.0,0.00054999,120]
[321187099,1711955432681,-500.0,0.00054999,120]
[321187100,1711955432691,-500.0,0.00054999,120]
[321187101,1711955432700,-500.0,0.00054999,120]
[321187102,1711955432708,-500.0,0.00054999,120]
[321187103,1711955432717,-500.0,0.00054999,120]
[321187104,1711955432726,-500.0,0.00054999,120]
[321187105,1711955432735,-500.0,0.00054999,120]
[321187106,1711955432744,-3845.59528562,0.00055,120]
[321187107,1711955432753,-164.90907086,0.00055,120]
[321187108,1711955432762,-500.0,0.00055273,120]
[321187109,1711955432771,-250.99,0.00055343,2]
[321187110,1711955432780,-500.0,0.00055547,120]
[321187111,1711955432789,-901.9,0.00055611,10]
[321187112,1711955432797,-2147.9457,0.00055621,2]
[321187113,1711955432806,-9317.3818,0.00055721,2]
[321187114,1711955432815,-500.0,0.00055821,120]
[321187115,1711955432825,-152.0,0.00055881,3]
[321187116,1711955432834,-200.0,0.00056,120]
[321187117,1711955432843,-500.0,0.00056095,120]
[321187118,1711955432852,-18241.324,0.00056267,120]
[321187119,1711955432863,-500.0,0.00056369,120]
[321187120,1711955432871,-151.0,0.00056411,120]
[321187121,1711955432880,-500.0,0.00056643,120]
[321187122,1711955432890,-172.2305523,0.00056917,4]
[321187123,1711955432898,-500.0,0.00056917,120]
[321187124,1711955432907,-367.2223614,0.00057,120]
[321187125,1711955432916,-1000.0,0.00057039,2]
[321187126,1711955432929,-1745.60741715,0.00057091,2]
[321187127,1711955432940,-5181.16749026,0.00057091,2]
[321187128,1711955432951,-681.0833,0.00057098,2]
[321187129,1711955432962,-337.1387,0.00057098,2]
[321187130,1711955432973,-1398.76393283,0.00057138,4]
[321187131,1711955432983,-20752.97932648,0.00057139,60]
[321187132,1711955432994,-335.02433125,0.00057191,120]
[321187133,1711955433005,-868.62075854,0.00057229,4]
[321187134,1711955433015,-3149.40688435,0.00057229,4]
[321187135,1711955433025,-250.99,0.00057607,2]
[321187136,1711955433034,-214.26950921,0.000577,120]
[321187137,1711955433044,-500.0,0.00057738,120]
[321187138,1711955433054,-503.85425232,0.00057738,2]
[321187139,1711955433065,-1008.54853735,0.00057738,120]
[321187140,1711955433074,-543.1173664,0.00057738,120]
[321187141,1711955433085,-527.15977523,0.00057738,120]
[321187142,1711955433106,-531.85656523,0.00057738,120]
[321187143,1711955433120,-500.0,0.00057799,120]
[321187144,1711955433133,-503.68173203,0.00057799,120]
[321187145,1711955433145,-500.0,0.00057799,120]
[321187146,1711955433157,-500.0,0.00057799,120]
[321187147,1711955433171,-500.0,0.00057799,120]
[321187148,1711955433183,-500.0,0.00057799,120]
[321187149,1711955433196,-500.0,0.00057799,120]
[321187150,1711955433208,-500.0,0.00057799,120]
[321187151,1711955433220,-500.0,0.00057799,120]
[321187152,1711955433232,-500.0,0.00057799,120]
[321187153,1711955433243,-500.0,0.00057799,120]
[321187154,1711955433254,-500.0,0.00057799,120]
[321187155,1711955433265,-500.0,0.00057799,120]
[321187156,1711955433275,-500.0,0.00057799,120]
[321187157,1711955433285,-500.0,0.00057799,120]
[321187158,1711955433297,-206.0,0.000578,2]
[321187159,1711955433309,-25000.0,0.000578,120]
[321187160,1711955433321,-10000.0,0.000578,10]
[321187161,1711955433334,-10000.0,0.000578,15]
[321187162,1711955433345,-10000.0,0.000578,25]
[321187163,1711955433358,-5181.16749025,0.00057845,2]
[321187164,1711955433368,-1745.60741707,0.00057848,2]
[321187165,1711955433380,-155.95513194,0.00057879,60]
[321187166,1711955433391,-170.23708636,0.000579,120]
[321187167,1711955433401,-767.21,0.0005794,30]
[321187168,1711955433413,-500.0,0.0005795,120]
[321187169,1711955433424,-500.0,0.0005795,120]
[321187170,1711955433435,-500.0,0.0005795,120]
[321187171,1711955433449,-500.0,0.0005795,120]
[321187172,1711955433459,-500.0,0.0005795,120]
[321187173,1711955433471,-667.7,0.0005795,120]
[321187174,1711955433483,-500.0,0.0005795,120]
[321187175,1711955433494,-500.0,0.0005795,120]
[321187176,1711955433504,-500.0,0.0005795,120]
[321187177,1711955433515,-500.0,0.0005795,120]
[321187178,1711955433526,-500.0,0.0005795,120]
[321187179,1711955433537,-872.83,0.0005795,120]
[321187180,1711955433550,-500.0,0.0005795,120]
[321187181,1711955433561,-500.0,0.0005795,120]
[321187182,1711955433573,-500.0,0.0005795,120]
[321187183,1711955433584,-500.0,0.0005795,120]
[321187184,1711955433594,-500.0,0.0005795,21]
[321187185,1711955433606,-500.0,0.0005795,120]
[321187186,1711955433620,-500.0,0.0005795,120]
[321187187,1711955433631,-500.0,0.0005795,120]
[321187188,1711955433643,-500.0,0.0005795,120]
[321187189,1711955433655,-500.0,0.0005795,120]
[321187190,1711955433666,-500.0,0.0005795,120]
[321187191,1711955433677,-500.0,0.0005795,120]
[321187192,1711955433689,-1406.541,0.00057951,120]
[321187193,1711955433701,-977.818,0.00057951,120]
[321187194,1711955433710,-2446.207,0.00057951,120]
[321187195,1711955433721,-461.622,0.00057951,120]
[321187196,1711955433733,-882.171,0.00057951,120]
[321187197,1711955433744,-1255.0,0.00057951,120]
[321187198,1711955433755,-538.0,0.00057951,120]
[321187199,1711955433767,-151.725,0.00057951,120]
[321187200,1711955433778,-1159.686,0.00057951,120]
[321187201,1711955433789,-153.531,0.00057951,120]
[321187202,1711955433799,-176.542,0.00057951,2]
[321187203,1711955433810,-200.05204,0.00057998,120]
[321187204,1711955433821,-500.0,0.00057998,120]
[321187205,1711955433832,-500.0,0.00057998,120]
[321187206,1711955433844,-500.0,0.00057998,120]
[321187207,1711955433854,-228.76411963,0.00057998,120]
[321187208,1711955433866,-502.16611719,0.00057998,120]
[321187209,1711955433877,-332.29475252,0.00057998,120]
[321187210,1711955433888,-524.7010528,0.00057998,120]
[321187211,1711955433898,-585.34531308,0.00057998,120]
[321187212,1711955433909,-544.20126653,0.00057998,120]
[321187213,1711955433920,-500.0,0.00057998,120]
[321187214,1711955433930,-500.0,0.00057998,120]
[321187215,1711955433939,-816.76,0.00057998,120]
[321187216,1711955433949,-500.0,0.00057998,120]
[321187217,1711955433958,-482.15000545,0.00057998,120]
[321187218,1711955433969,-672.33,0.00057998,120]
[321187219,1711955433979,-500.0,0.00057998,120]
[321187220,1711955433989,-500.0,0.00057998,120]
[321187221,1711955433999,-500.0,0.00057998,120]
[321187222,1711955434009,-500.0,0.00057998,120]
[321187223,1711955434022,-500.0,0.00057998,120]
[321187224,1711955434032,-500.0,0.00057998,120]
[321187225,1711955434043,-500.0,0.00057998,120]
[321187226,1711955434052,-4312.85009334,0.00058,30]
[321187227,1711955434063,-6196.5302,0.00058,2]
[321187228,1711955434072,-400.0,0.00058,120]
[321187229,1711955434083,-6000.0,0.00058,15]
[321187230,1711955434094,-500.0,0.00058012,120]
[321187231,1711955434105,-500.0,0.00058073,120]
[321187232,1711955434115,-500.0,0.00058073,120]
[321187233,1711955434124,-500.0,0.00058073,120]
[321187234,1711955434137,-304.34101717,0.00058073,120]
[321187235,1711955434147,-500.0,0.00058073,120]
[321187236,1711955434157,-500.0,0.00058073,120]
[321187237,1711955434166,-500.0,0.00058073,120]
[321187238,1711955434176,-500.0,0.00058073,120]
[321187239,1711955434186,-500.0,0.00058073,120]
[321187240,1711955434195,-500.0,0.00058073,120]
[321187241,1711955434205,-500.0,0.00058073,120]
[321187242,1711955434215,-500.0,0.00058073,120]
[321187243,1711955434225,-500.0,0.00058073,120]
[321187244,1711955434236,-201.49821148,0.00058124,14]
[321187245,1711955434246,-25000.0,0.000582,120]
[321187246,1711955434255,-257.28311402,0.00058224,120]
[321187247,1711955434267,-500.0,0.00058224,120]
[321187248,1711955434277,-500.0,0.00058224,120]
[321187249,1711955434286,-500.0,0.00058224,120]
[321187250,1711955434296,-500.0,0.00058224,120]
[321187251,1711955434306,-667.7,0.00058224,120]
[321187252,1711955434317,-500.0,0.00058224,120]
[321187253,1711955434327,-500.0,0.00058224,120]
[321187254,1711955434338,-500.0,0.00058224,120]
[321187255,1711955434349,-500.0,0.00058224,120]
[321187256,1711955434360,-500.0,0.00058224,120]
[321187257,1711955434373,-872.83,0.00058224,120]
[321187258,1711955434383,-500.0,0.00058224,120]
[321187259,1711955434393,-500.0,0.00058224,120]
[321187260,1711955434403,-612.22116004,0.00058224,120]
[321187261,1711955434414,-500.0,0.00058224,120]
[321187262,1711955434427,-500.0,0.00058224,21]
[321187263,1711955434440,-500.0,0.00058224,120]
[321187264,1711955434451,-500.0,0.00058224,120]
[321187265,1711955434462,-500.0,0.00058224,120]
[321187266,1711955434474,-500.0,0.00058224,120]
[321187267,1711955434484,-500.0,0.00058224,120]
[321187268,1711955434494,-500.0,0.00058224,120]
[321187269,1711955434505,-500.0,0.00058224,120]
[321187270,1711955434517,-500.0,0.00058272,120]
[321187271,1711955434528,-500.0,0.00058272,120]
[321187272,1711955434538,-500.0,0.00058272,120]
[321187273,1711955434548,-816.76,0.00058272,120]
[321187274,1711955434558,-500.0,0.00058272,120]
[321187275,1711955434568,-672.33,0.00058272,120]
[321187276,1711955434578,-500.0,0.00058272,120]
[321187277,1711955434588,-500.0,0.00058272,120]
[321187278,1711955434597,-500.0,0.00058272,120]
[321187279,1711955434607,-500.0,0.00058272,120]
[321187280,1711955434617,-500.0,0.00058272,120]
[321187281,1711955434628,-500.0,0.00058272,120]
[321187282,1711955434638,-500.0,0.00058286,120]
[321187283,1711955434648,-500.0,0.00058347,120]
[321187284,1711955434658,-500.0,0.00058347,120]
[321187285,1711955434669,-500.0,0.00058347,120]
[321187286,1711955434679,-500.0,0.00058347,120]
[321187287,1711955434690,-500.0,0.00058347,120]
[321187288,1711955434700,-500.0,0.00058347,120]
[321187289,1711955434710,-500.0,0.00058347,120]
[321187290,1711955434720,-500.0,0.00058347,120]
[321187291,1711955434730,-500.0,0.00058347,120]
[321187292,1711955434740,-500.0,0.00058347,120]
[321187293,1711955434750,-500.0,0.00058347,120]
[321187294,1711955434760,-500.0,0.00058347,120]
[321187295,1711955434771,-400.0,0.000584,21]
[321187296,1711955434781,-151.040116,0.00058478,119]
[321187297,1711955434792,-500.0,0.00058498,120]
[321187298,1711955434803,-500.0,0.00058498,120]
[321187299,1711955434813,-500.0,0.00058498,120]
[321187300,1711955434825,-572.45,0.00058498,120]
[321187301,1711955434835,-667.7,0.00058498,120]
[321187302,1711955434845,-500.0,0.00058498,120]
[321187303,1711955434856,-500.0,0.00058498,120]
[321187304,1711955434866,-500.0,0.00058498,120]
[321187305,1711955434876,-500.0,0.00058498,120]
[321187306,1711955434886,-500.0,0.00058498,120]
[321187307,1711955434899,-872.83,0.00058498,120]
[321187308,1711955434909,-427.234211,0.00058498,120]
[321187309,1711955434919,-500.0,0.00058498,120]
[321187310,1711955434929,-500.0,0.00058498,120]
[321187311,1711955434938,-500.0,0.00058498,21]
[321187312,1711955434949,-500.0,0.00058498,120]
[321187313,1711955434959,-500.0,0.00058498,120]
[321187314,1711955434969,-500.0,0.00058498,120]
[321187315,1711955435203,-500.0,0.00058498,120]
[321187316,1711955435216,-500.0,0.00058498,120]
[321187317,1711955435225,-500.0,0.00058498,120]
[321187318,1711955435235,-500.0,0.00058498,120]
[321187319,1711955435244,-900.0,0.000585,21]
[321187320,1711955435253,-565.52917,0.0005852,89]
[321187321,1711955435265,-500.0,0.00058546,120]
[321187322,1711955435274,-500.0,0.00058546,120]
[321187323,1711955435284,-500.0,0.00058546,120]
[321187324,1711955435293,-816.76,0.00058546,120]
[321187325,1711955435302,-500.0,0.00058546,120]
[321187326,1711955435311,-672.33,0.00058546,120]
[321187327,1711955435321,-500.0,0.00058546,120]
[321187328,1711955435331,-500.0,0.00058546,120]
[321187329,1711955435340,-391.72,0.00058546,120]
[321187330,1711955435350,-500.0,0.00058546,120]
[321187331,1711955435360,-500.0,0.00058546,120]
[321187332,1711955435370,-500.0,0.00058546,120]
[321187333,1711955435380,-5181.16749025,0.00058599,2]
[321187334,1711955435390,-1400.0,0.000586,21]
[321187335,1711955435400,-213.44410808,0.000586,30]
[321187336,1711955435410,-1745.60741707,0.00058604,2]
[321187337,1711955435419,-500.0,0.00058621,120]
[321187338,1711955435429,-500.0,0.00058621,120]
[321187339,1711955435443,-500.0,0.00058621,120]
[321187340,1711955435452,-500.0,0.00058621,120]
[321187341,1711955435462,-572.37,0.00058621,120]
[321187342,1711955435471,-500.0,0.00058621,120]
[321187343,1711955435481,-500.0,0.00058621,120]
[321187344,1711955435491,-500.0,0.00058621,120]
[321187345,1711955435500,-500.0,0.00058621,120]
[321187346,1711955435510,-500.0,0.00058621,120]
[321187347,1711955435525,-500.0,0.00058621,120]
[321187348,1711955435535,-444.51,0.00058621,120]
[321187349,1711955435544,-151.040116,0.00058678,119]
[321187350,1711955435554,-20000.0,0.000587,120]
[321187351,1711955435562,-1900.0,0.000587,21]
[321187352,1711955435572,-565.52918,0.000587,90]
[321187353,1711955435581,-309.13819393,0.000587,2]
[321187354,1711955435590,-1000.0,0.00058709,2]
[321187355,1711955435600,-500.0,0.00058772,120]
[321187356,1711955435609,-500.0,0.00058772,120]
[321187357,1711955435618,-667.7,0.00058772,120]
[321187358,1711955435627,-634.77,0.00058772,120]
[321187359,1711955435636,-500.0,0.00058772,120]
[321187360,1711955435645,-500.0,0.00058772,120]
[321187361,1711955435654,-500.0,0.00058772,120]
[321187362,1711955435663,-500.0,0.00058772,120]
[321187363,1711955435673,-872.83,0.00058772,120]
[321187364,1711955435683,-500.0,0.00058772,120]
[321187365,1711955435693,-500.0,0.00058772,120]
[321187366,1711955435702,-500.0,0.00058772,21]
[321187367,1711955435713,-500.0,0.00058772,120]
[321187368,1711955435723,-241.29,0.00058772,120]
[321187369,1711955435732,-465.81,0.00058772,120]
[321187370,1711955435741,-500.0,0.00058772,120]
[321187371,1711955435751,-2596.00401779,0.00058777,70]
[321187372,1711955435760,-500.0,0.00058777,2]
[321187373,1711955435772,-4704.44,0.0005878,2]
[321187374,1711955435781,-5000.0,0.0005878,3]
[321187375,1711955435792,-436.94210405,0.00058795,59]
[321187376,1711955435801,-2184.73213723,0.00058795,30]
[321187377,1711955435811,-172.24324082,0.00058795,2]
[321187378,1711955435820,-191.0372773,0.00058795,120]
[321187379,1711955435830,-187.70467841,0.00058795,12]
[321187380,1711955435839,-1485.90644714,0.00058795,2]
[321187381,1711955435849,-500.0,0.000588,30]
[321187382,1711955435858,-2400.0,0.000588,21]
[321187383,1711955435867,-151.17363347,0.000588,78]
[321187384,1711955435876,-1231.83935218,0.00058805,120]
[321187385,1711955435886,-652.62846725,0.00058809,37]
[321187386,1711955435895,-767.21,0.00058812,30]
[321187387,1711955435904,-622.14,0.0005882,120]
[321187388,1711955435914,-816.76,0.0005882,120]
[321187389,1711955435923,-500.0,0.0005882,120]
[321187390,1711955435932,-672.33,0.0005882,120]
[321187391,1711955435942,-608.85,0.0005882,120]
[321187392,1711955435951,-500.0,0.0005882,120]
[321187393,1711955435960,-500.0,0.0005882,120]
[321187394,1711955435969,-373.23,0.0005882,120]
[321187395,1711955435979,-255.57431701,0.00058822,37]
[321187396,1711955435988,-1627.22323954,0.00058822,2]
[321187397,1711955435997,-160.83703763,0.00058822,2]
[321187398,1711955436007,-150.5,0.0005887,15]
[321187399,1711955436017,-182.49,0.0005887,15]
[321187400,1711955436026,-416.25846877,0.0005887,7]
[321187401,1711955436035,-416.25846877,0.0005887,7]
[321187402,1711955436044,-416.25846877,0.0005887,7]
[321187403,1711955436053,-150.72,0.0005887,120]
[321187404,1711955436062,-150.72,0.0005887,120]
[321187405,1711955436072,-150.72,0.0005887,120]
[321187406,1711955436081,-150.72,0.0005887,120]
[321187407,1711955436090,-150.72,0.0005887,120]
[321187408,1711955436100,-150.72,0.0005887,120]
[321187409,1711955436110,-150.72,0.0005887,120]
[321187410,1711955436119,-150.72,0.0005887,120]
[321187411,1711955436129,-150.72,0.0005887,120]
[321187412,1711955436138,-150.72,0.0005887,120]
[321187413,1711955436147,-150.72,0.0005887,120]
[321187414,1711955436156,-150.72,0.0005887,120]
[321187415,1711955436165,-150.72,0.0005887,120]
[321187416,1711955436174,-150.72,0.0005887,120]
[321187417,1711955436187,-767.21,0.0005887,30]
[321187418,1711955436196,-767.21,0.0005887,30]
[321187419,1711955436205,-767.21,0.0005887,30]
[321187420,1711955436214,-767.21,0.0005887,30]
[321187421,1711955436223,-767.21,0.0005887,30]
[321187422,1711955436233,-767.21,0.0005887,30]
[321187423,1711955436242,-767.21,0.0005887,30]
[321187424,1711955436251,-767.21,0.0005887,30]
[321187425,1711955436261,-15186.5276679,0.00058877,2]
[321187426,1711955436272,-151.040116,0.00058878,119]
[321187427,1711955436281,-150.0,0.00058879,60]
[321187428,1711955436290,-830.61241619,0.00058879,120]
[321187429,1711955436299,-175.73626305,0.00058879,30]
[321187430,1711955436308,-28317.41610964,0.0005888,36]
[321187431,1711955436317,-888318.52519395,0.0005888,7]
[321187432,1711955436403,-83481.97377388,0.0005888,7]
[321187433,1711955436422,-500.0,0.00057799,120]
[321187434,1711955436431,-2248.28398235,0.0005888,7]
[321187454,1711955438228,-466.83959243,0.00052636,4]
[321187456,1711955438237,-231.46040757,0.00058073,120]
[321187460,1711955438290,-268.53959243,0.00058073,120]
[321187462,1711955438299,-500.0,0.00058347,120]
[321187464,1711955438308,-458.76,0.00058621,120]
[321187466,1711955438317,-5128528.22687323,0.0005888,7]
[321187468,1711955438328,-81208.72236988,0.0005888,7]
[321187469,1711955438337,-500.0,0.00058895,120]
[321187470,1711955438346,-500.0,0.00058895,120]
[321187471,1711955438355,-500.0,0.00058895,120]
[321187472,1711955438365,-500.0,0.00058895,120]
[321187473,1711955438374,-500.0,0.00058895,120]
[321187474,1711955438383,-500.0,0.00058895,120]
[321187475,1711955438392,-500.0,0.00058895,120]
[321187476,1711955438401,-500.0,0.00058895,120]
[321187477,1711955438410,-290.52555696,0.00058895,120]
[321187478,1711955438420,-500.0,0.00058895,120]
[321187479,1711955438429,-400.0,0.000589,21]
[321187480,1711955438440,-150.72,0.00058912,120]
[321187481,1711955438448,-6138.7518683,0.00058922,7]
[321187482,1711955438457,-662.0,0.00058972,25]
[321187483,1711955438466,-500.0,0.00059,7]
[321187484,1711955438475,-500.0,0.00059,7]
[321187485,1711955438485,-500.0,0.00059,7]
[321187486,1711955438495,-500.0,0.00059,7]
[321187487,1711955438504,-500.0,0.00059,7]
[321187488,1711955438515,-500.0,0.00059,7]
[321187489,1711955438524,-500.0,0.00059,7]
[321187490,1711955438533,-500.0,0.00059,7]
[321187491,1711955438541,-500.0,0.00059,7]
[321187492,1711955438550,-500.0,0.00059,7]
[321187493,1711955438559,-500.0,0.00059,7]
[321187494,1711955438568,-500.0,0.00059,7]
[321187495,1711955438577,-500.0,0.00059,7]
[321187496,1711955438586,-500.0,0.00059,7]
[321187497,1711955438595,-500.0,0.00059,7]
[321187498,1711955438604,-500.0,0.00059,7]
[321187499,1711955438613,-500.0,0.00059,7]
[321187500,1711955438623,-500.0,0.00059,7]
[321187501,1711955438632,-500.0,0.00059,7]
[321187502,1711955438641,-500.0,0.00059,7]
[321187503,1711955438650,-500.0,0.00059,7]
[321187504,1711955438660,-500.0,0.00059,7]
[321187505,1711955438669,-500.0,0.00059,7]
[321187506,1711955438678,-206.12,0.00059,7]
[321187507,1711955438687,-500.0,0.00059,7]